bitfinex-derivatives/quotes_ETHF0:USTF0_20240923
["timestamp","ask_amount","ask_price","bid_price","bid_amount"]
[1727098946316,0.37864,2641.4,2641.3,3.58645]
[1727098946824,0.37862,2641.6,2641.4,0.37863]
[1727098947116,0.37863,2641.5,2641.3,3.2078]
[1727098947315,0.37863,2641.5,2641.3,0.37864]
[1727098947611,0.37864,2641.4,2641.3,0.37865]
[1727098947817,0.37864,2641.4,2641.2,0.37866]
[1727098948019,0.37864,2641.4,2641.3,0.37865]
[1727098948225,0.3786,2641.7,2641.6,0.3786]
[1727098949318,4.127,2641.9,2641.6,0.3786]
[1727098949516,7.71338,2641.9,2641.8,0.37858]
[1727098949709,7.71338,2641.9,2641.2,0.94668]
[1727098949710,0.37859,2641.8,2641.7,0.37859]
[1727098950722,0.3786,2641.7,2641.6,0.3786]
[1727098951420,0.37863,2641.5,2641.4,0.37864]
[1727098951719,0.37861,2641.6,2641.5,0.37862]
[1727098951918,0.3786,2641.7,2641.6,0.37861]
[1727098952106,7.3348,2641.9,2641.8,0.37858]
[1727098952107,7.71337,2641.9,2641.8,0.37858]
[1727098952308,3.2078,2641.9,2641.8,0.37858]
[1727098952513,3.2078,2641.9,2641.2,0.94668]
[1727098952714,3.2078,2641.9,2641.6,0.3786]
[1727098952715,0.37861,2641.7,2641.6,0.3786]
[1727098953013,0.37861,2641.7,2641.2,0.94668]
[1727098953014,0.37862,2641.6,2641.5,0.37861]
[1727098953210,0.37865,2641.4,2641.1,3.933]
[1727098953411,0.37866,2641.3,2641.2,0.37866]
[1727098953609,0.94651,2641.7,2640.8,7.50959]
[1727098953610,2.55,2641.4,2640.8,3.2078]
[1727098953815,0.37875,2640.7,2640.6,0.37874]
[1727098954324,0.37873,2640.8,2640.7,0.37872]
[1727098954717,4.15448,2641.2,2640.9,0.3787]
[1727098954718,0.37871,2641.0,2640.9,0.3787]
[1727098954915,0.37872,2640.9,2640.8,0.37871]
[1727098955323,4.16512,2640.9,2640.8,0.37871]
[1727098955520,0.37873,2640.8,2640.7,0.37873]
[1727098955820,0.37872,2640.9,2640.8,0.37872]
[1727098956018,0.37871,2641.0,2640.9,0.3787]
[1727098956223,0.37869,2641.1,2641.0,0.37868]
[1727098956610,3.58648,2641.2,2641.1,0.37868]
[1727098956816,7.37288,2641.2,2641.1,0.37868]
[1727098957730,3.2078,2641.2,2641.1,0.37868]
[1727098958022,4.50564,2641.4,2641.3,0.37865]
[1727098958218,0.37864,2641.4,2641.3,0.37865]
[1727098958421,0.37866,2641.3,2641.2,0.37866]
[1727098958923,0.37865,2641.4,2641.3,0.37865]
[1727098959225,0.37867,2641.3,2641.1,0.37868]
[1727098959616,0.37867,2641.3,2641.2,0.37867]
[1727098959811,0.37867,2641.3,2641.0,0.7576]
[1727098959812,0.94657,2641.5,2641.1,0.37868]
[1727098960016,4.15446,2641.3,2640.7,0.3644]
[1727098960322,0.37872,2640.8,2640.7,0.74313]
[1727098960728,3.49671,2641.1,2640.7,0.74313]
[1727098960729,0.37872,2640.9,2640.8,0.37872]
[1727098961226,0.37872,2640.9,2640.7,0.74313]
[1727098961518,0.37872,2640.8,2640.7,0.74313]
[1727098961727,0.37872,2640.9,2640.8,0.37872]
[1727098962427,4.54736,2641.3,2640.7,0.3644]
[1727098962428,3.6007,2641.3,2640.7,0.3644]
[1727098962722,3.6007,2641.3,2641.0,0.37869]
[1727098962723,0.37869,2641.1,2641.0,0.37869]
[1727098963017,0.37867,2641.2,2641.1,0.37867]
[1727098963729,0.37867,2641.2,2640.7,1.69154]
[1727098963730,0.37866,2641.3,2641.2,0.37866]
[1727098964024,0.37867,2641.2,2641.1,0.37867]
[1727098965123,0.37869,2641.1,2641.0,0.37869]
[1727098965343,0.37868,2641.2,2641.1,0.37868]
[1727098966027,3.49662,2641.4,2640.7,1.69154]
[1727098966216,0.37868,2641.2,2641.1,0.37868]
[1727098966617,0.37865,2641.4,2641.3,0.37865]
[1727098966820,0.37865,2641.4,2640.9,0.94677]
[1727098966821,0.37866,2641.3,2641.2,0.37866]
[1727098967115,2.55,2641.4,2641.0,0.37869]
[1727098967316,0.3787,2641.0,2640.9,0.3787]
[1727098967936,0.37872,2640.8,2640.7,0.74313]
[1727098968231,0.37874,2640.7,2640.6,3.58654]
[1727098968430,0.37874,2640.7,2640.6,0.37874]
[1727098968635,0.37873,2640.8,2640.7,0.37873]
[1727098969523,0.37875,2640.7,2640.6,0.37874]
[1727098969725,2.55,2641.0,2640.2,0.7785]
[1727098969726,0.37877,2640.6,2640.5,0.37876]
[1727098970122,3.7872,2640.6,2640.5,0.37876]
[1727098970434,4.16595,2640.6,2640.5,0.37876]
[1727098971518,0.37874,2640.8,2640.7,0.37873]
[1727098972126,0.37874,2640.8,2640.7,0.37874]
[1727098972332,0.94679,2640.9,2640.6,0.37874]
[1727098972333,0.37875,2640.7,2640.6,0.37874]
[1727098972825,0.37872,2640.9,2640.8,0.37871]
[1727098973222,0.37871,2640.9,2640.8,0.37871]
[1727098974733,4.19011175,2641.0,2640.7,0.37873]
[1727098974734,0.37874,2640.8,2640.7,0.37873]
[1727098974936,0.37872,2640.9,2640.8,0.37872]
[1727098975334,1.36102175,2641.0,2640.9,0.37871]
[1727098976134,1.85217773,2641.0,2640.9,0.37871]
[1727098976336,1.47346773,2641.0,2640.9,0.37871]
[1727098976524,1.36321512,2641.0,2640.9,0.37871]
[1727098976725,0.3787,2641.0,2640.9,0.37871]
[1727098977037,0.98457366,2641.0,2640.9,0.94678]
[1727098977335,1.47346773,2641.1,2641.0,0.3787]
[1727098977336,0.98457366,2641.1,2641.0,0.3787]
[1727098978035,1.36324366,2641.2,2641.1,0.37868]
[1727098978237,0.37867,2641.2,2641.1,0.37868]
[1727098978631,1.47346773,2641.3,2641.2,1.32535]
[1727098978834,0.98579278,2641.3,2641.2,0.37867]
[1727098979030,0.98564127,2641.3,2641.2,0.37867]
[1727098979229,0.98564127,2641.3,2641.2,1.32535]
[1727098979435,0.98564127,2641.4,2641.3,1.32529]
[1727098979935,0.98564127,2641.4,2641.3,5.11089]
[1727098980124,0.98564127,2641.5,2641.4,0.37864]
[1727098980325,1.47346773,2641.5,2641.4,0.37864]
[1727098980530,1.47346773,2641.7,2641.6,0.37861]
[1727098980735,1.478596,2641.7,2641.4,4.5243]
[1727098980927,1.478596,2641.7,2641.6,0.37861]
[1727098981333,2.34326241,2641.9,2641.6,10.73213]
[1727098981334,0.98590517,2641.9,2641.6,10.73213]
[1727098981545,1.96469241,2642.0,2641.9,0.37857]
[1727098981546,0.98590517,2642.0,2641.9,0.37857]
[1727098981740,0.98590517,2642.2,2642.1,0.37854]
[1727098982244,0.98590517,2642.4,2642.1,12.9926]
[1727098982432,0.98590517,2642.5,2642.4,0.3785]
[1727098983143,4.51469241,2642.7,2642.5,0.37848]
[1727098983144,0.98590517,2642.6,2642.5,0.37848]
[1727098983342,2.55,2642.7,2642.5,0.37848]
[1727098983343,3.53590517,2642.7,2642.5,0.37848]
[1727098983537,0.98590517,2642.6,2642.5,0.37848]
[1727098983743,0.98590517,2642.6,2642.4,0.37849]
[1727098984443,1.36437517,2642.6,2642.4,0.37849]
[1727098984748,0.98590517,2642.6,2642.5,0.37848]
[1727098984951,0.98590517,2642.7,2642.6,0.37847]
[1727098986154,0.98590517,2642.9,2642.6,9.784]
[1727098986448,6.64601171,2643.8,2642.6,9.784]
[1727098986449,0.98590517,2643.7,2643.6,0.37832]
[1727098986647,0.98590517,2643.9,2643.6,0.37832]
[1727098986843,1.36419517,2643.9,2643.7,0.37831]
[1727098987042,0.37829,2643.9,2643.6,0.37831]
[1727098987247,0.3783,2643.8,2643.6,0.37832]
[1727098987440,3.90720517,2644.0,2643.5,0.37833]
[1727098987441,6.1291,2644.0,2643.5,0.37833]
[1727098987646,0.3783,2643.8,2643.6,0.37832]
[1727098988249,0.37831,2643.7,2643.5,0.37833]
[1727098988856,2.9213,2644.0,2643.4,0.37835]
[1727098988857,0.37833,2643.6,2643.4,0.37835]
[1727098989153,2.55,2643.6,2643.5,0.37834]
[1727098989559,0.37831,2643.7,2643.5,0.37834]
[1727098989754,2.9213,2644.0,2643.3,0.3834]
[1727098989755,7.0748,2644.0,2643.4,0.37834]
[1727098989956,0.37832,2643.7,2643.5,0.37834]
[1727098990664,7.0748,2644.0,2643.4,0.37834]
[1727098990860,0.37832,2643.7,2643.5,0.37834]
[1727098991168,0.94575,2643.8,2643.3,0.3834]
[1727098991369,7.0748,2644.0,2643.4,0.37835]
[1727098991370,0.37833,2643.6,2643.4,0.37835]
[1727098991861,0.37833,2643.6,2642.9,4.67514]
[1727098991862,0.37835,2643.4,2642.9,0.3831]
[1727098992163,2.55,2643.3,2642.9,0.3831]
[1727098992369,0.37841,2643.1,2642.9,0.37842]
[1727098992563,0.37839,2643.2,2643.0,0.3784]
[1727098992954,2.55,2643.3,2642.8,0.402]
[1727098993172,0.37843,2642.9,2642.8,0.37843]
[1727098993468,0.37843,2642.9,2642.7,3.2078]
[1727098993660,0.37842,2643.0,2642.9,0.37842]
[1727098994259,3.784,2643.0,2642.5,0.94621]
[1727098994459,0.3784,2643.1,2643.0,0.37841]
[1727098994660,4.1616,2643.1,2643.0,0.37841]
[1727098995367,4.1616,2643.1,2642.9,0.37842]
[1727098995368,3.7832,2643.1,2642.9,0.37842]
[1727098995663,0.3943,2643.4,2642.6,4.15395]
[1727098995967,0.37841,2643.0,2642.9,0.37842]
[1727098996662,0.37843,2642.9,2642.8,0.37843]
[1727098997063,0.94596,2643.2,2642.9,0.37842]
[1727098997261,3.2078,2643.1,2642.8,0.37843]
[1727098997565,0.37845,2642.7,2642.6,0.37846]
[1727098997761,2.55,2643.0,2642.4,0.7741]
[1727098997762,0.37847,2642.6,2642.4,0.7741]
[1727098998066,0.37847,2642.6,2642.5,0.37848]
[1727098998260,0.37846,2642.7,2642.6,0.37847]
[1727098998455,0.37844,2642.8,2642.7,0.37845]
[1727098998657,3.2078,2643.1,2642.4,0.7741]
[1727098998853,0.37842,2643.0,2642.9,0.37842]
[1727098999057,3.2078,2643.1,2642.8,0.37843]
[1727098999058,0.37843,2642.9,2642.8,0.37843]
[1727098999266,3.2078,2643.1,2642.9,0.37841]
[1727098999267,0.37841,2643.0,2642.9,0.37841]
[1727099000072,0.3784,2643.1,2643.0,0.37841]
[1727099000967,0.37841,2643.0,2642.9,0.37841]
[1727099001469,0.3784,2643.1,2643.0,0.3784]
[1727099001962,0.37839,2643.2,2642.7,3.2078]
[1727099002163,0.3784,2643.1,2643.0,0.3784]
[1727099002368,0.3784,2643.1,2642.7,3.2078]
[1727099002369,0.37839,2643.2,2643.1,0.37839]
[1727099002764,0.37836,2643.4,2643.3,0.37835]
[1727099002967,0.37838,2643.3,2643.2,0.37838]
[1727099003470,0.37836,2643.4,2643.3,0.37835]
[1727099003766,5.7578,2643.7,2642.7,3.2078]
[1727099003969,0.3783,2643.8,2643.7,0.3783]
[1727099004361,0.37828,2643.9,2643.4,0.3962]
[1727099004757,0.3783,2643.8,2643.4,0.3962]
[1727099004964,0.37829,2643.9,2643.8,0.37829]
[1727099005371,0.3783,2643.8,2643.7,0.3783]
[1727099006066,0.3783,2643.8,2643.4,0.3962]
[1727099006067,0.37829,2643.9,2643.8,0.37829]
[1727099006768,3.2078,2644.1,2643.4,0.3962]
[1727099006769,0.3783,2643.8,2643.7,0.3783]
[1727099007160,3.2078,2644.1,2643.7,0.3783]
[1727099007367,0.37829,2643.9,2643.8,0.37828]
[1727099007568,3.2078,2644.1,2643.4,1.34207]
[1727099007763,3.2078,2644.1,2643.4,0.3962]
[1727099007975,0.3783,2643.8,2643.7,0.3783]
[1727099009281,4.15346,2644.1,2643.4,0.3962]
[1727099009282,0.94567,2644.0,2643.4,0.3962]
[1727099009571,0.3783,2643.8,2643.7,0.3783]
[1727099010067,0.37829,2643.9,2643.8,0.37829]
[1727099010268,0.37831,2643.8,2643.7,0.3783]
[1727099010567,0.37829,2643.9,2643.8,0.37828]
[1727099010769,0.3783,2643.8,2643.7,0.3783]
[1727099011277,0.37829,2643.9,2643.8,0.37828]
[1727099011668,3.2078,2644.1,2644.0,0.37825]
[1727099011669,0.37826,2644.1,2644.0,0.37825]
[1727099011873,3.5894,2644.7,2643.8,3.2078]
[1727099012069,0.94541,2644.8,2644.0,0.94567]
[1727099012379,0.37819,2644.6,2644.5,0.37819]
[1727099012570,2.07,2644.8,2644.2,0.9456]
[1727099012769,0.37817,2644.7,2644.6,0.37817]
[1727099012970,0.37808,2645.3,2644.5,6.22327]
[1727099013177,5.13883517,2645.6,2645.2,0.37809]
[1727099013178,0.37807,2645.4,2645.2,0.37809]
[1727099013368,0.3781,2645.2,2645.0,0.37812]
[1727099013674,0.37809,2645.3,2645.0,0.37812]
[1727099013878,0.37809,2645.3,2644.9,0.3889]
[1727099013879,2.07,2645.5,2644.9,0.3889]
[1727099014280,0.3781,2645.2,2644.9,0.76703]
[1727099014577,5.7478,2645.6,2645.2,0.37809]
[1727099014773,0.37806,2645.5,2645.2,0.37809]
[1727099015272,0.37806,2645.5,2644.9,0.3889]
[1727099015273,3.2078,2645.6,2644.9,0.3889]
[1727099015470,3.2078,2645.6,2645.2,0.37808]
[1727099015471,0.37805,2645.5,2645.2,0.37808]
[1727099015883,0.37805,2645.5,2645.3,0.37808]
[1727099016272,0.3843,2645.7,2644.9,0.3889]
[1727099016273,0.76233,2645.7,2644.9,0.3889]
[1727099016472,6.1443,2645.9,2644.9,0.3889]
[1727099016473,3.6043,2645.9,2645.5,0.37804]
[1727099016669,0.37802,2645.8,2645.1,3.2078]
[1727099016880,3.6043,2645.9,2645.2,0.37809]
[1727099017069,0.37804,2645.7,2645.2,0.37809]
[1727099017381,0.37804,2645.7,2645.3,0.37808]
[1727099017382,0.37803,2645.7,2645.3,0.37808]
[1727099017778,0.37804,2645.6,2645.2,0.37809]
[1727099018193,0.37805,2645.5,2645.1,3.5859]
[1727099018486,0.37806,2645.5,2645.1,3.5859]
[1727099018871,3.2078,2645.6,2645.1,3.2078]
[1727099019076,0.3965,2645.9,2645.1,3.2078]
[1727099019285,0.37802,2645.8,2645.5,0.37805]
[1727099019781,0.37801,2645.9,2645.6,0.37804]
[1727099020286,0.37798,2646.1,2645.7,0.37801]
[1727099020677,0.37798,2646.0,2645.7,0.37801]
[1727099020875,0.3906,2646.2,2645.4,3.2078]
[1727099021077,0.37797,2646.1,2645.8,0.378]
[1727099021282,0.37798,2646.0,2645.8,0.378]
[1727099021686,7.09512,2646.4,2645.4,3.2078]
[1727099021687,0.94485,2646.3,2645.4,3.2078]
[1727099021982,0.94485,2646.3,2645.8,0.37801]
[1727099022184,0.37798,2646.1,2645.8,0.37801]
[1727099022382,3.58578,2646.1,2645.9,0.37799]
[1727099022580,0.4025,2646.4,2645.4,4.15294]
[1727099022780,0.37796,2646.2,2645.9,0.37799]
[1727099023479,0.37797,2646.1,2645.9,0.37799]
[1727099023685,0.37798,2646.0,2645.4,3.2078]
[1727099023877,0.37799,2646.0,2645.7,0.37801]
[1727099024073,3.88734,2646.4,2645.6,0.37803]
[1727099024276,3.88734,2646.4,2645.3,0.374]
[1727099024277,0.37802,2645.8,2645.7,3.2078]
[1727099024486,0.37801,2645.9,2645.7,3.58582]
[1727099024686,0.37801,2645.9,2645.7,3.2078]
[1727099024887,0.37801,2645.8,2645.7,3.2078]
[1727099025077,0.378,2645.9,2645.7,3.58582]
[1727099025278,0.4025,2646.4,2645.8,0.378]
[1727099025486,0.94485,2646.3,2645.8,0.3899]
[1727099025787,0.37799,2646.0,2645.8,0.3899]
[1727099025974,0.37799,2645.9,2645.8,0.3899]
[1727099026176,0.37799,2646.0,2645.8,0.3899]
[1727099026376,0.94491,2646.2,2645.8,0.3899]
[1727099026377,0.37799,2645.9,2645.8,0.3899]
[1727099026580,1.34733,2646.4,2645.8,0.3899]
[1727099026793,1.34733,2646.4,2645.8,0.7872]
[1727099026976,0.37797,2646.1,2645.9,0.37799]
[1727099027177,0.37797,2646.1,2646.0,0.37798]
[1727099028486,0.94485,2646.3,2645.9,0.37799]
[1727099028793,0.37797,2646.1,2645.9,0.37799]
[1727099029279,0.94489,2646.2,2645.8,1.1652]
[1727099029482,0.94485,2646.3,2645.9,0.37799]
[1727099029675,0.37799,2646.0,2645.9,0.37799]
[1727099030888,0.94487,2646.3,2645.8,1.16521]
[1727099031192,0.37799,2645.9,2645.8,0.7872]
[1727099031882,0.37804,2645.6,2645.3,0.374]
[1727099032080,5.7478,2646.2,2645.3,0.7358]
[1727099032285,0.37807,2645.4,2645.3,0.7358]
[1727099032789,3.2078,2645.9,2645.3,4.5158]
[1727099032992,0.37803,2645.7,2645.5,0.37804]
[1727099033185,4.55512,2646.4,2645.3,0.7358]
[1727099033391,0.37802,2645.7,2645.5,0.37805]
[1727099034094,0.94486,2646.3,2645.8,0.37801]
[1727099034095,0.37801,2645.9,2645.8,0.37801]
[1727099034295,0.37799,2646.0,2645.5,3.2078]
[1727099034596,0.37799,2646.0,2645.9,0.37799]
[1727099034793,6.9483,2646.4,2645.9,0.37799]
[1727099034794,3.2078,2646.7,2645.9,2.07]
[1727099034988,0.37792,2646.4,2646.3,0.37793]
[1727099035293,0.37792,2646.4,2646.3,0.37794]
[1727099035294,0.37793,2646.4,2646.3,0.37794]
[1727099035495,0.37791,2646.5,2646.0,0.7608]
[1727099035692,0.37791,2646.5,2646.3,0.37793]
[1727099035892,0.37792,2646.4,2646.3,0.37793]
[1727099036606,3.01473,2646.7,2646.0,0.7608]
[1727099036607,0.37794,2646.3,2646.2,0.37794]
[1727099036990,0.37794,2646.3,2646.0,0.7608]
[1727099036991,0.37797,2646.1,2646.0,0.7608]
[1727099037287,0.37797,2646.1,2646.0,1.13878]
[1727099037489,0.37794,2646.4,2646.2,0.37794]
[1727099037890,0.37792,2646.5,2646.0,2.8308]
[1727099038089,5.407,2646.9,2646.0,2.8308]
[1727099038090,0.94471,2646.7,2646.0,2.8308]
[1727099038288,2.07,2646.5,2646.0,1.13877]
[1727099038493,0.37797,2646.1,2646.0,0.3856]
[1727099038693,0.94496,2646.0,2645.5,0.3735]
[1727099038894,0.37803,2645.7,2645.6,0.37804]
[1727099039098,0.37801,2645.8,2645.7,0.37802]
[1727099039292,2.07,2646.1,2645.6,3.2078]
[1727099039599,2.07,2646.1,2646.0,0.37798]
[1727099039600,0.37797,2646.1,2646.0,0.37798]
[1727099039789,0.37796,2646.2,2646.1,0.37796]
[1727099039990,3.01471,2646.7,2645.8,5.2778]
[1727099039991,6.22251,2646.7,2645.8,5.2778]
[1727099040289,5.2778,2646.7,2645.8,3.2078]
[1727099040491,5.2778,2646.7,2645.6,6.35208]
[1727099040492,2.07,2646.2,2645.5,0.3735]
[1727099040697,2.07,2646.0,2645.5,0.3735]
[1727099040892,0.94487,2646.3,2645.9,0.37799]
[1727099041189,0.37798,2646.0,2645.8,0.378]
[1727099041390,0.94487,2646.3,2645.8,0.378]
[1727099041596,0.37796,2646.2,2646.0,0.37798]
[1727099041895,0.37797,2646.1,2645.9,0.37799]
[1727099042094,0.37796,2646.2,2646.0,0.37797]
[1727099042290,0.37797,2646.1,2646.0,0.37797]
[1727099042497,0.37797,2646.1,2645.9,0.37799]
[1727099043801,2.07,2646.2,2645.7,3.2078]
[1727099043991,0.94485,2646.3,2645.5,0.75154]
[1727099043992,2.07,2646.0,2645.5,0.75154]
[1727099044190,0.37804,2645.6,2645.5,0.75154]
[1727099044396,3.01498,2646.0,2645.6,0.37803]
[1727099044594,0.37806,2645.5,2645.4,0.37806]
[1727099044900,0.37806,2645.5,2645.3,0.75467]
[1727099045096,0.37806,2645.5,2645.4,0.37807]
[1727099045689,0.37807,2645.4,2645.3,0.3766]
[1727099045903,0.37808,2645.3,2645.2,3.2078]
[1727099046103,0.37814,2644.9,2644.8,0.4026]
[1727099047000,0.37814,2644.9,2644.8,0.78075]
[1727099047200,0.37814,2645.0,2644.8,0.4026]
[1727099047401,0.37814,2644.9,2644.8,0.4026]
[1727099047596,0.37812,2645.1,2644.8,0.4026]
[1727099048100,3.2078,2645.3,2644.8,0.4026]
[1727099048406,3.58588,2645.3,2645.2,0.37809]
[1727099049000,0.3781,2645.2,2645.1,0.3781]
[1727099049302,3.2078,2645.3,2645.0,0.37812]
[1727099049604,0.37812,2645.1,2645.0,0.37812]
[1727099049807,0.37813,2645.0,2644.9,0.37813]
[1727099049994,0.37814,2644.9,2644.8,0.4026]
[1727099050305,3.01526,2645.2,2644.7,3.2078]
[1727099050306,2.07,2645.2,2644.7,3.2078]
[1727099050498,0.37813,2645.0,2644.9,0.37813]
[1727099050897,0.37812,2645.1,2645.0,0.37812]
[1727099052098,0.3781,2645.2,2645.1,0.37809]
[1727099053104,1.36398517,2645.4,2645.3,0.37808]
[1727099053297,1.36397517,2645.4,2645.3,0.37808]
[1727099054496,0.98590517,2645.4,2645.3,1.32329]
[1727099054701,2.45586551,2645.8,2645.6,0.37804]
[1727099054702,0.98590517,2645.7,2645.6,0.37804]
[1727099054908,1.36392517,2645.8,2645.7,0.37802]
[1727099055410,1.46486785,2646.0,2645.3,3.9656]
[1727099055411,0.98443027,2645.9,2645.3,3.9656]
[1727099055599,0.37803,2645.7,2645.6,0.37803]
[1727099055800,0.98443027,2645.8,2645.3,6.0356]
[1727099056002,0.37804,2645.7,2645.6,0.37802]
[1727099056206,0.37805,2645.6,2645.5,0.37805]
[1727099056507,0.98443027,2645.6,2645.3,0.7578]
[1727099056716,0.37804,2645.6,2645.5,0.37804]
[1727099057513,0.98443027,2645.8,2645.5,0.37805]
[1727099057708,0.37805,2645.6,2645.5,0.37805]
[1727099058206,0.98443027,2645.7,2645.3,2.8278]
[1727099058207,0.94514,2645.5,2645.3,0.7578]
[1727099058407,0.37809,2645.3,2645.0,0.37812]
[1727099058604,0.9863284,2645.3,2644.9,3.5905]
[1727099058913,0.37812,2645.1,2644.9,3.5905]
[1727099059208,0.9863284,2645.0,2644.9,3.96864]
[1727099059415,0.9863284,2645.1,2644.9,3.96864]
[1727099059805,1.3644384,2645.1,2644.9,3.96864]
[1727099060317,1.3644484,2645.0,2644.9,0.3827]
[1727099060508,1.3644484,2645.0,2644.5,5.2778]
[1727099060509,0.37815,2644.9,2644.6,0.37817]
[1727099060911,0.37816,2644.8,2644.5,3.97389]
[1727099061314,0.9863284,2645.0,2644.5,3.5957]
[1727099061506,0.9863284,2645.0,2644.5,3.97389]
[1727099061708,0.37816,2644.8,2644.6,0.37818]
[1727099061911,0.37815,2644.9,2644.6,0.37818]
[1727099062100,0.9863284,2645.0,2644.8,0.37815]
[1727099062306,1.3644584,2645.0,2644.8,0.37815]
[1727099062510,1.3644384,2645.1,2644.9,0.37814]
[1727099062809,0.9863284,2645.1,2644.9,0.37814]
[1727099063807,1.3644384,2645.1,2644.9,0.37814]
[1727099064708,0.9863284,2645.1,2645.0,0.37812]
[1727099064909,0.9863284,2645.1,2644.8,3.2078]
[1727099064910,0.9863284,2645.2,2645.1,0.37811]
[1727099065113,0.37809,2645.2,2645.1,0.37811]
[1727099065313,0.9863284,2645.2,2645.1,0.37811]
[1727099065514,0.9863284,2645.3,2645.2,0.37809]
[1727099066318,0.9863284,2645.3,2645.1,5.2778]
[1727099066319,0.9863284,2645.4,2645.3,0.37808]
[1727099066814,0.98602254,2645.4,2645.3,0.37807]
[1727099067413,1.36409254,2645.4,2645.3,0.37807]
[1727099067713,1.36409254,2645.4,2645.2,0.7692]
[1727099067714,1.84294785,2645.4,2645.2,0.7692]
[1727099067915,0.98613419,2645.3,2645.2,1.14729]
[1727099068917,1.36420419,2645.4,2645.3,0.37808]
[1727099070432,0.98613419,2645.4,2645.3,0.37808]
[1727099070622,0.98613419,2645.5,2645.4,0.37807]
[1727099070921,0.98613419,2645.6,2645.5,0.37805]
[1727099071320,1.36417419,2645.6,2645.5,0.37805]
[1727099071711,1.84290785,2645.6,2645.5,0.37805]
[1727099071911,1.84289785,2645.7,2645.6,0.37804]
[1727099072111,1.84288785,2645.7,2645.6,0.37804]
[1727099073020,0.37802,2645.7,2645.6,0.37804]
[1727099073208,2.34270241,2645.8,2645.7,0.37802]
[1727099073514,2.34269241,2645.9,2645.8,0.37801]
[1727099074325,2.34269241,2645.9,2645.4,3.01516]
[1727099074326,0.37802,2645.8,2645.7,0.37801]
[1727099074510,2.34269241,2645.9,2645.8,0.37801]
[1727099075025,1.96469241,2646.1,2645.8,0.94503]
[1727099075228,1.85822232,2646.1,2646.0,0.37798]
[1727099075523,2.34265241,2646.2,2646.1,0.37797]
[1727099075729,0.37796,2646.2,2646.1,0.37797]
[1727099076119,2.34265241,2646.2,2646.1,0.37797]
[1727099076324,0.37796,2646.2,2646.1,0.37797]
[1727099076535,2.34263241,2646.3,2646.2,0.37795]
[1727099076827,0.37794,2646.3,2646.2,0.37795]
[1727099077327,0.37794,2646.3,2646.1,0.37796]
[1727099077328,0.37796,2646.2,2646.1,0.37796]
[1727099077523,1.85806952,2646.2,2646.1,0.37796]
[1727099077825,1.48010952,2646.2,2646.1,1.32288]
[1727099078027,1.48010952,2646.2,2646.1,0.37796]
[1727099078028,0.98679728,2646.2,2646.1,0.37796]
[1727099078227,0.98679728,2646.3,2646.2,0.37795]
[1727099078927,0.98679728,2646.5,2646.3,0.37794]
[1727099079121,0.98679728,2646.5,2646.4,0.37792]
[1727099079318,0.98679728,2646.5,2646.4,0.76002]
[1727099079522,0.98679728,2646.5,2646.1,2.07]
[1727099079523,0.37791,2646.5,2646.1,2.07]
[1727099079730,0.98679728,2646.5,2646.4,0.37792]
[1727099079933,1.36470728,2646.5,2646.4,0.37792]
[1727099080131,0.98679728,2646.5,2646.4,0.37792]
[1727099082647,0.98679728,2646.6,2646.5,0.37791]
[1727099082947,1.36467728,2646.7,2646.6,0.37789]
[1727099083351,1.36466728,2646.8,2646.7,0.37788]
[1727099084150,0.37789,2646.6,2646.5,0.3752]
[1727099084340,0.37792,2646.4,2646.3,3.58573]
[1727099084536,0.98605552,2646.6,2646.3,3.2078]
[1727099084742,0.37791,2646.6,2646.5,0.37791]
[1727099084949,0.98605552,2646.7,2646.6,0.37789]
[1727099085251,0.37788,2646.7,2646.6,0.37789]
[1727099085749,0.37791,2646.6,2646.5,0.37789]
[1727099085946,0.98605552,2646.8,2646.3,3.2078]
[1727099086248,0.37792,2646.4,2646.3,3.58574]
[1727099086753,1.36397552,2646.4,2646.3,3.58574]
[1727099086951,0.37792,2646.4,2646.3,3.58574]
[1727099087252,1.36397552,2646.4,2646.3,3.2078]
[1727099087442,1.36397552,2646.4,2646.3,3.58574]
[1727099088451,0.37792,2646.4,2646.3,3.58574]
[1727099088945,0.98605552,2646.5,2646.4,0.37792]
[1727099089154,1.36396552,2646.6,2646.5,0.37791]
[1727099089747,0.37791,2646.6,2646.5,0.37791]
[1727099090348,1.36319758,2646.6,2646.5,0.37791]
[1727099091153,1.36317758,2646.7,2646.6,0.37789]
[1727099091351,0.98528758,2646.7,2646.6,0.37789]
[1727099091653,1.36318758,2646.7,2646.6,0.37789]
[1727099091957,0.37792,2646.5,2646.4,0.37791]
[1727099094558,0.3779,2646.7,2646.3,3.2078]
[1727099094852,0.37791,2646.6,2646.5,0.3779]
[1727099095049,0.37788,2646.7,2646.6,0.37788]
[1727099095255,0.98500669,2646.8,2646.6,0.37788]
[1727099095256,0.37788,2646.8,2646.7,0.37788]
[1727099095449,0.37788,2646.8,2646.7,4.55688]
[1727099095649,1.36284669,2647.0,2646.9,0.37785]
[1727099095846,0.37784,2647.0,2646.9,0.37785]
[1727099098953,0.37784,2647.0,2646.9,4.15545]
[1727099099651,0.37783,2647.2,2647.1,0.37781]
[1727099100266,0.37783,2647.2,2645.8,0.378]
[1727099100267,0.37796,2646.2,2645.8,0.378]
[1727099100454,0.94503,2645.8,2644.7,0.19]
[1727099100769,0.94503,2645.8,2644.1,0.41543156]
[1727099100770,2.07,2644.8,2644.1,0.41543156]
[1727099101065,0.98397403,2645.0,2644.5,3.2078]
[1727099101066,2.07,2645.0,2644.5,3.2078]